Workbook

Sheet Sheet1
A1: INSTRUCTIONS: Use this form when a single information collection document involves multiple reporting and recordkeeping requirements. The totals of the figures in columns should be entered in item 13 of OMB-83-1: columns (D) &/or (I) = 13a (respondent is only counted once); columns F & I = 13b; columns H & K = 13c. (F)Total/(D)Total = (E)Average; (H)Total/(F)Total = (G)Average; (K)Total/(I)Total = (J)Average. NOTE: The columns will calculate automatically. If column E's response is something other than annually, i.e., 1/6 years, list as "1/6" & decimal will display. | J1: TITLE OF INFORMATION COLLECTION DOCUMENT | N1: OMB NO.
N3: 0581-0189
J5: Marketing Order and Agreement Division Generic OMB Fruit Crops
N6: DATE PREPARED
N7: 2013-08-18
H10: ANNUAL BURDEN
A11: IDENTIFICATION OF REPORTING OR RECORDKEEPING REQUIREMENT | H11: REPORTS | M11: RECORDS
A12: SECTION OF REGS. (A) | B12: DESCRIPTION (B) | G12: FORM NOS. (If "none" so state) (C) | H12: NO. OF RESPONDENTS (D) | I12: NO. OF RESPONSES PER RESPONDENT (E) | J12: TOTAL ANNUAL RESPONSES (COL. D X E) (F) | K12: HOURS PER RESPONSE (G) | L12: TOTAL HOURS (COL. F X G) (H) | M12: NO. OF RECORD KEEPERS (I) | N12: ANNUAL HOURS PER RECORDKEEPER (J) | O12: TOTAL RECORD KEEPING HOURS (COL I X J) (K)
A13: 7 CFR | B13: Confidential Background Questionnaire/Statement
A14: 905.23 | B14: 905 - Citrus Grown in Florida Confidential Background Statement for Administrative Committee | G14: FV-163 | H14: 34 | I14: 1.0000 | J14: =SUM(H14*I14) -> 34.00 | K14: 0.0830 | L14: =SUM(J14*K14) -> 2.82 | M14: 0 | N14: 0.000 | O14: =SUM(M14*N14) -> 0.00
A15: 905.23 | B15: 905 - Citrus Grown in Florida Confidential Background Statement for Administrative Committee Public Member | G15: FV-164 | H15: 2 | I15: 1.0000 | J15: =SUM(H15*I15) -> 2.00 | K15: 0.0830 | L15: =SUM(J15*K15) -> 0.17 | M15: 0 | N15: 0.000 | O15: =SUM(M15*N15) -> 0.00
A16: 606.23 | B16: 906 - Texas Citrus | G16: FV-82 | H16: 30 | I16: 0.3300 | J16: 10.00 | K16: 0.0830 | L16: 0.83 | M16: 0 | N16: 0.000
A17: 915.23 | B17: 915 - Avocados | G17: FV-97 | H17: 18 | I17: 1.0000 | J17: =SUM(H17*I17) -> 18.00 | K17: 0.0830 | L17: =SUM(J17*K17) -> 1.49 | M17: 0 | N17: 0.000 | O17: =SUM(M17*N17) -> 0.00
A18: 915.23 | B18: 915 - Avocados Public Member and Alternates | G18: FV-97-1 | H18: 2 | I18: 1.0000 | J18: =SUM(H18*I18) -> 2.00 | K18: 0.0830 | L18: =SUM(J18*K18) -> 0.17 | M18: 0 | N18: 0.000 | O18: =SUM(M18*N18) -> 0.00
A19: 920.25 | B19: 920 - Kiwifruit Producer | G19: FV-266 | H19: 22 | I19: 0.5000 | J19: =SUM(H19*I19) -> 11.00 | K19: 0.0830 | L19: =SUM(J19*K19) -> 0.91 | M19: 0 | N19: 0.000 | O19: =SUM(M19*N19) -> 0.00
A20: 920.25 | B20: 920 - Kiwifruit Public Member and Alternate | G20: FV-266-1 | H20: 2 | I20: 0.5000 | J20: =SUM(H20*I20) -> 1.00 | K20: 0.0830 | L20: =SUM(J20*K20) -> 0.08 | M20: 0 | N20: 0.000 | O20: =SUM(M20*N20) -> 0.00
A21: 922.21 | B21: 922 - Apricots | G21: FV-152 | H21: 24 | I21: 0.5000 | J21: =SUM(H21*I21) -> 12.00 | K21: 0.0830 | L21: =SUM(J21*K21) -> 1.00 | M21: 0 | N21: 0.000 | O21: =SUM(M21*N21) -> 0.00
B22: SUBTOTAL | J22: =SUM(J14:J21) -> 90.00 | L22: =SUM(L14:L21) -> 7.47 | M22: =SUM(M14:M21) -> 0.00 | N22: =SUM(N14:N21) -> 0.00 | O22: =SUM(O14:O18) -> 0.00
B23: TOTAL OF ALL PAGES | J23: =J22+J35+J46+J57+J68+J79+J90+J100+J110+J122+J133+J145+J157+J171+J182+J187 -> 26,364.96 | L23: =L22+L35+L46+L57+L68+L79+L90+L100+L110+L122+L133+L145+L157+L171+L182+L187 -> 7,804.86 | M23: =SUM(M112:M121) -> 406.00 | O23: =O112+O113+O114+O115+O116+O117+O118+O119+O120+O121 -> 486.40
A24: TOTAL - COLUMNS "F" AND "I" = OMB 831, 13 b; COLUMNS "H" AND "K" = OMB 831, 13c | J24: =SUM(J23+M23) -> 26,770.96 | L24: =SUM(L23+O23) -> 8,291.26 | M24: 406.00 | O24: 486.40
A25: 923.23 | B25: 923 - Sweet Cherries | G25: FV-23 | H25: 32 | I25: 0.5000 | J25: =SUM(H25*I25) -> 16.00 | K25: 0.0830 | L25: =SUM(J25*K25) -> 1.33 | O25: =SUM(M25*N25) -> 0.00
A26: 925.22 | B26: 925 - California Desert Grapes | G26: FV-74 | H26: 24 | I26: 1.0000 | J26: 24.00 | K26: 0.0830 | L26: 1.99 | O26: 0.00
A27: 927.20 927.26 | B27: 927 - Fresh Pear/Processed Pear Committee Member | G27: FV-120 | H27: 63 | I27: 0.5000 | J27: =SUM(H27*I27) -> 31.50 | K27: 0.0830 | L27: =SUM(J27*K27) -> 2.61 | O27: =SUM(M27*N27) -> 0.00
A28: 927.20 927.26 | B28: 927 - Fresh Pear/Processed Pear Public Member | G28: FV-129 | H28: 6 | I28: 0.5000 | J28: 3.00 | K28: 0.0830 | L28: 0.25 | O28: 0.00
A29: 929.20 | B29: 929 - Cranberries Qualification Statement - Public Member/Alternate | G29: FV-259 | H29: 2 | I29: 0.5000 | J29: 1.00 | K29: 0.0830 | L29: 0.08 | O29: 0.00
A30: 929.22 | B30: 929 - Cranberries Qualification Statement - Grower Member | G30: FV-260 | H30: 13 | I30: 0.5000 | J30: 6.50 | K30: 0.0830 | L30: 0.54 | O30: 0.00
A31: 929.22 | B31: 929 - Cranberries Qualification Statement - Grower Alternate Member (same form as for Grower Member) | G31: FV-260 | H31: 9 | I31: 0.5000 | J31: 4.50 | K31: 0.0830 | L31: 0.37 | O31: 0.00
A32: 7 CFR | B32: Committee Ballots/Nominations
A33: 915.22 915.115 | B33: 915 - Avocados Committee Grower Registration Form | G33: FV-208 | H33: 10 | I33: 1.0000 | J33: =SUM(H33*I33) -> 10.00 | K33: 0.1670 | L33: =SUM(J33*K33) -> 1.67 | O33: =SUM(M33*N33) -> 0.00
A34: 915.22 | B34: 915 - Avocados Handler Ballot to Nominate Members and Alternates (District 1 or District 2) | G34: FV-266-11 | H34: 352 | I34: 1.0000 | J34: =SUM(H34*I34) -> 352.00 | K34: 0.0830 | L34: =SUM(J34*K34) -> 29.22 | O34: 0.00
B35: SUBTOTAL | J35: =SUM(J25:J34) -> 448.50 | L35: =SUM(L25:L34) -> 38.07 | O35: =SUM(O20:O29) -> 972.80
A36: 915.22 | B36: 915 - Avocados Grower Ballot to Nominate Members and Alternates (District 1 or District 2) | G36: FV-266-10 | H36: 32 | I36: 1.0000 | J36: 32.00 | K36: 0.0830 | L36: 2.66 | O36: 0.00
A37: 915.115 | B37: 915 - Avocados Proxy Authorization | G37: FV-216 | H37: 4 | I37: 1.0000 | J37: 4.00 | K37: 0.1670 | L37: 0.67 | O37: 0.00
A38: 920.122 | B38: 920 - Kiwifruit Official Nomination Form | G38: FV-266-2 | H38: 195 | I38: 1.0000 | J38: =SUM(H38*I38) -> 195.00 | K38: 0.1670 | L38: =SUM(J38*K38) -> 32.57 | O38: =SUM(M38*N38) -> 0.00
A39: 920.122 | B39: 920 - Kiwifruit Official Ballot | G39: FV-266-3 | H39: 195 | I39: 1.0000 | J39: 195.00 | K39: 0.1670 | L39: 32.57 | O39: 0.00
A40: 929.22(e)(1), (2) | B40: 929 - Cranberries Member and Alternate Member Nomination Form | G40: FV-650 | H40: 500 | I40: 0.5000 | J40: =SUM(H40*I40) -> 250.00 | K40: 0.0830 | L40: =SUM(J40*K40) -> 20.75 | O40: =SUM(M40*N40) -> 0.00
A41: 929.22(f)(1) | B41: 929 - Cranberries Member and Alternate Member Ballot | G41: FV-651 | H41: 500 | I41: 0.5000 | J41: 250.00 | K41: 0.0830 | L41: 20.75 | O41: 0.00
A42: 7 CFR | B42: Letter of Acceptance
A43: 905.28 | B43: 905 - Citrus Grown in Florida (No burden, only signature required) | G43: None | H43: 36 | I43: 1.0000 | J43: 36.00 | L43: 0.00 | O43: 0.00
A44: 906.25 | B44: 906 - Texas Citrus (No burden, only signature required) | G44: None | H44: 30 | I44: 0.3333 | J44: 10.00 | L44: 0.00 | O44: 0.00
A45: 915.25 | B45: 915 - Avocados (No burden, only signature required) | G45: None | H45: 20 | I45: 1.0000 | J45: 20.00 | L45: 0.00 | O45: 0.00
B46: SUBTOTAL | J46: =SUM(J36:J45) -> 992.00 | L46: =SUM(L36:L45) -> 109.95 | O46: =SUM(O38:O39) -> 0.00
A47: 922.25 | B47: 922 - Apricots (No burden, only signature required) | G47: None | H47: 24 | I47: 0.5000 | J47: =SUM(H47*I47) -> 12.00 | L47: =SUM(J47*K47) -> 0.00 | O47: =SUM(M47*N47) -> 0.00
A48: 925.25 | B48: 925 - California Desert Grapes (No burden, only signature required) | G48: None | H48: 24 | I48: 1.0000 | J48: 24.00 | L48: 0.00 | O48: 0.00
A49: 929.25 | B49: 929 - Cranberries (No burden, only signature required) | G49: None | H49: 16 | I49: 0.5000 | J49: =SUM(H49*I49) -> 8.00 | L49: =SUM(J49*K49) -> 0.00 | O49: =SUM(M49*N49) -> 0.00
A50: 7 CFR | B50: Marketing Agreement/Handler Agreement
A51: 900.14 | B51: 905 - Citrus Grown in Florida | G51: FV-162 | H51: 75 | I51: 0.1667 | J51: 12.50 | K51: 0.0830 | L51: 1.04 | O51: 0.00
A52: 900.14 | B52: 906 - Texas Citrus | G52: FV-81 | H52: 22 | I52: 0.1667 | J52: =SUM(H52*I52) -> 3.67 | K52: 0.0830 | L52: =SUM(J52*K52) -> 0.30 | O52: =SUM(M52*N52) -> 0.00
A53: 900.14 | B53: 915 - Avocados | G53: FV-96 | H53: 0 | I53: 0.1667 | J53: =SUM(H53*I53) -> 0.00 | K53: 0.0830 | L53: =SUM(J53*K53) -> 0.00 | O53: =SUM(M53*N53) -> 0.00
A54: 900.14 | B54: 920 - Kiwifruit | G54: FV-71 | H54: 24 | I54: 0.1667 | J54: =SUM(H54*I54) -> 4.00 | K54: 0.0830 | L54: =SUM(J54*K54) -> 0.33 | O54: =SUM(M54*N54) -> 0.00
A55: 900.14 | B55: 922 - Apricots | G55: FV-151 | H55: 20 | I55: 0.1667 | J55: 3.33 | K55: 0.0830 | L55: 0.28 | O55: 0.00
A56: 900.14 | B56: 923 - Sweet Cherries | G56: FV-21 | H56: 56 | I56: 0.1667 | J56: 9.34 | K56: 0.0830 | L56: 0.77 | O56: 0.00
B57: SUBTOTAL | J57: =SUM(J47:J56) -> 76.84 | L57: =SUM(L47:L56) -> 2.73 | O57: =SUM(O40:O44) -> 0.00
A58: 900.14 | B58: 925 - California Desert Grapes | G58: FV-78 | H58: 15 | I58: 1.0000 | J58: =SUM(H58*I58) -> 15.00 | K58: 0.0830 | L58: =SUM(J58*K58) -> 1.25 | O58: =SUM(M58*N58) -> 0.00
A59: 900.14 | B59: 927 - Fresh Pears | G59: FV-119 | H59: 50 | I59: 0.1667 | J59: 8.34 | K59: 0.0830 | L59: =SUM(J59*K59) -> 0.69 | O59: =SUM(M59*N59) -> 0.00
A60: 900.14 | B60: 927 - Processed Pears | G60: FV-130 | H60: 50 | I60: 0.1667 | J60: 8.34 | K60: 0.0830 | L60: 0.69 | O60: 0.00
A61: 900.14 | B61: 929 - Cranberries | G61: FV-263 | H61: 50 | I61: 0.1667 | J61: 8.34 | K61: 0.0830 | L61: 0.69 | O61: 0.00
A62: 7 CFR | B62: Certificate of Resolution
A63: 900.14 | B63: 905 - Florida Citrus Cooperative's Certified Resolution | G63: FV-162A | H63: 21 | I63: 0.1667 | J63: =SUM(H63*I63) -> 3.50 | K63: 0.0830 | L63: =SUM(J63*K63) -> 0.29 | O63: =SUM(M63*N63) -> 0.00
A64: 900.14 | B64: 922 - Apricots | G64: FV-151A | H64: 20 | I64: 0.1667 | J64: =SUM(H64*I64) -> 3.33 | K64: 0.0830 | L64: =SUM(J64*K64) -> 0.28 | O64: =SUM(M64*N64) -> 0.00
A65: 900.14 | B65: 923 - Sweet Cherries | G65: FV-21A | H65: 56 | I65: 0.1667 | J65: =SUM(H65*I65) -> 9.34 | K65: 0.0830 | L65: =SUM(J65*K65) -> 0.77 | O65: =SUM(M65*N65) -> 0.00
A66: 900.14 | B66: 927 - Fresh Pears | G66: FV-119A | H66: 50 | I66: 0.1667 | J66: =SUM(H66*I66) -> 8.34 | K66: 0.0830 | L66: =SUM(J66*K66) -> 0.69 | O66: =SUM(M66*N66) -> 0.00
A67: 900.14 | B67: 927 - Processed Pears | G67: FV-130A | H67: 50 | I67: 0.1667 | J67: =SUM(H67*I67) -> 8.34 | K67: 0.0830 | L67: =SUM(J67*K67) -> 0.69 | O67: =SUM(M67*N67) -> 0.00
B68: SUBTOTAL | J68: =SUM(J58:J67) -> 72.84 | L68: =SUM(L58:L67) -> 6.05 | O68: =SUM(O64:O66) -> 0.00
A69: 7 CFR | B69: Producer Referendum
A70: 900.14 905.83 | B70: 905 - Citrus Grown in Florida Official Producer Referendum Ballot | G70: FV-160 | H70: 8,000 | I70: 0.1667 | J70: =SUM(H70*I70) -> 1,333.60 | K70: 0.3300 | L70: =SUM(J70*K70) -> 440.09 | O70: =SUM(M70*N70) -> 0.00
A71: 905.83 | B71: 905 - Citrus Grown in Florida Cooperative Association Producer Ballot | G71: FV-161 | H71: 21 | I71: 0.1667 | J71: 3.50 | K71: 0.0300 | L71: 0.11 | O71: 0.00
A72: 900.14 906.55 | B72: 906 - Texas Citrus | G72: FV-83 | H72: 183 | I72: 0.1667 | J72: 30.51 | K72: 0.3300 | L72: 10.07 | O72: 0.00
A73: 900.14 915.64 | B73: 915 - Avocados | G73: FV-98 | H73: 300 | I73: 0.1667 | J73: =SUM(H73*I73) -> 50.01 | K73: 0.3300 | L73: =SUM(J73*K73) -> 16.50 | O73: =SUM(M73*N73) -> 0.00
A74: 900.14 920.63(c) | B74: 920 - Kiwifruit | G74: FV-70 | H74: 195 | I74: 0.1667 | J74: =SUM(H74*I74) -> 32.51 | K74: 0.3300 | L74: =SUM(J74*K74) -> 10.73 | O74: =SUM(M74*N74) -> 0.00
A75: 900.14 920.63(c) | B75: 920 - Kiwifruit (Amendment) | G75: FV-70-A | H75: 195 | I75: 0.1667 | J75: 32.51 | K75: 0.3300 | L75: 10.73 | O75: 0.00
A76: 900.14 922.64 | B76: 922 - Apricots Producer's Referendum Ballot (Amendment and Termination) | G76: FV-150 | H76: 90 | I76: 0.1667 | J76: 15.00 | K76: 0.3300 | L76: 4.95 | O76: =SUM(M76*N76) -> 0.00
A77: 900.14 922.64 | B77: 922- Apricots Cooperative Association Referendum Ballot (Amendment and Termination) | G77: FV-150A | H77: 4 | I77: 0.1670 | J77: 0.67 | K77: 0.3300 | L77: 0.22 | O77: =SUM(M77*N77) -> 0.00
A78: 900.14 922.64 | B78: 922 - Apricots Cooperative Association Certificate of Resolution | G78: FV-150B | H78: 4 | I78: 0.1670 | J78: =SUM(H78*I78) -> 0.67 | K78: 0.0830 | L78: =SUM(J78*K78) -> 0.06 | O78: =SUM(M78*N78) -> 0.00
B79: SUBTOTAL | J79: =SUM(J70:J78) -> 1,498.97 | L79: =SUM(L70:L78) -> 493.44 | O79: =SUM(O78:O80) -> 0.00
A80: 900.14 923.64 | B80: 923 - Sweet Cherries | G80: FV-22 | H80: 1,500 | I80: 0.1670 | J80: 250.50 | K80: 0.3300 | L80: 82.67 | O80: 0.00
A81: 900.14 923.64 | B81: 923 - Sweet Cherries Cooperative Association Referendum Ballot (Amendment and Termination) | G81: FV-22A | H81: 6 | I81: 0.1670 | J81: 1.00 | K81: 0.3300 | L81: 0.33 | O81: 0.00
A82: 900.14 923.64 | B82: 923 - Sweet Cherries Cooperative Association Certificate of Resolution | G82: FV-22B | H82: 6 | I82: 0.1670 | J82: 1.00 | K82: 0.0830 | L82: 0.08 | O82: 0.00
A83: 900.14 925.63 | B83: 925 - California Desert Grapes | G83: FV-77 | H83: 50 | I83: 0.1667 | J83: =SUM(H83*I83) -> 8.34 | K83: 0.3300 | L83: =SUM(J83*K83) -> 2.75 | O83: =SUM(M83*N83) -> 0.00
A84: 900.14 927.78 | B84: 927 - Fresh Pears Producer's Referendum Ballot | G84: FV-118 | H84: 1,800 | I84: 0.1667 | J84: 300.06 | K84: 0.3300 | L84: 99.02 | O84: 0.00
A85: 900.14 927.78 | B85: 927 - Fresh Pears Cooperative Association Referendum Ballot | G85: FV-118A | H85: 10 | I85: 0.1667 | J85: 1.67 | K85: 0.3300 | L85: 0.55 | O85: 0.00
A86: 900.14 927.78 | B86: 927 - Fresh Pears Cooperative Association Certificate of Resolution | G86: FV-118B | H86: 10 | I86: 0.1667 | J86: =SUM(H86*I86) -> 1.67 | K86: 0.0830 | L86: =SUM(J86*K86) -> 0.14 | O86: 0.00
A87: 900.14 927.78 | B87: 927 - Processed Pear Producers' Referendum Ballot | G87: FV-128 | H87: 1,800 | I87: 0.1667 | J87: =SUM(H87*I87) -> 300.06 | K87: 0.3300 | L87: =SUM(J87*K87) -> 99.02 | O87: =SUM(M87*N87) -> 0.00
A88: 900.14 927.78 | B88: 927 - Processed Pear Cooperative Association Referendum Ballot | G88: FV-128A | H88: 10 | I88: 0.1667 | J88: =SUM(H88*I88) -> 1.67 | K88: 0.3300 | L88: =SUM(J88*K88) -> 0.55 | O88: =SUM(M88*N88) -> 0.00
A89: 900.14 927.78 | B89: 927 - Processed Pear Cooperative Association Certificate of Resolution | G89: FV-128B | H89: 10 | I89: 0.1667 | J89: =SUM(H89*I89) -> 1.67 | K89: 0.0830 | L89: =SUM(J89*K89) -> 0.14 | O89: =SUM(M89*N89) -> 0.00
B90: SUBTOTAL | J90: =SUM(J80:J89) -> 867.63 | L90: =SUM(L80:L89) -> 285.25 | O90: =SUM(O83:O88) -> 0.00
A91: 929.69 | B91: 929 - Cranberries Continuance Referendum Ballot | G91: FV-53 | H91: 1,250 | I91: 0.2500 | J91: =SUM(H91*I91) -> 312.50 | K91: 0.3300 | L91: =SUM(J91*K91) -> 103.13 | O91: =SUM(M91*N91) -> 0.00
A92: 900.403 | B92: 929 - Cranberries Amendatory Grower Referendum Ballot | G92: FV-288 | H92: 1,250 | I92: 0.1666 | J92: 208.25 | K92: 0.3300 | L92: 68.72 | O92: 0.00
A93: 900.403 | B93: 929 - Cranberries Amendatory Processor Referendum Ballot | G93: FV-287 | H93: 28 | I93: 0.1666 | J93: =SUM(H93*I93) -> 4.66 | K93: 0.3300 | L93: =SUM(J93*K93) -> 1.54 | O93: =SUM(M93*N93) -> 0.00
A94: 900.403 | B94: 929 - Cranberries Certificate of Resolution and Amendatory Co-op Referendum Ballot | G94: FV-286 | H94: 1 | I94: 0.1666 | J94: 0.17 | K94: 0.3300 | L94: 0.05 | O94: 0.00
A95: 7 CFR | B95: Certificate of Privilege
A96: 905.147 | B96: 905 - Florida Citrus Application for a Repacking Certificate of Privilege | G96: CAC 100 | H96: 10 | I96: 1.0000 | J96: 10.00 | K96: 0.0830 | L96: 0.83 | O96: 0.00
A97: 905.147 | B97: 905 - Florida Citrus Application for Certificate of Privilege by Special Purpose Shipper | G97: CAC 200 | H97: 8 | I97: 12.0000 | J97: =SUM(H97*I97) -> 96.00 | K97: 0.0830 | L97: =SUM(J97*K97) -> 7.97 | O97: =SUM(M97*N97) -> 0.00
A98: 905.148 | B98: 905 - Florida Citrus Report of Shipments Under Certificate of Privilege (Repacking) | G98: CAC 110 | H98: 10 | I98: 50.0000 | J98: =SUM(H98*I98) -> 500.00 | K98: 0.1200 | L98: =SUM(J98*K98) -> 60.00 | O98: =SUM(M98*N98) -> 0.00
A99: 906.120(d) | B99: 906 - Texas Citrus | G99: None | H99: 14 | I99: 1.0000 | J99: 14.00 | K99: 0.0830 | L99: 1.16 | O99: 0.00
B100: SUBTOTAL | J100: =SUM(J91:J99) -> 1,145.58 | L100: =SUM(L91:L99) -> 243.40 | O100: =SUM(O97:O103) -> 0.00
A101: 923.54 923.322 | B101: 923 - Sweet Cherries Shippers/Receivers Application for Shipment Certificates | G101: None | H101: 6 | I101: 1.0000 | J101: 6.00 | K101: 0.3300 | L101: 1.98 | O101: 0.00
A102: 7 CFR | B102: Special Purpose Shipment
A103: 905.147 | B103: 905 - Citrus Grown in Florida Report of Special Purpose Shipment Certified Organic Citrus | G103: CAC 201 | H103: 4 | I103: 1.0000 | J103: 4.00 | K103: 0.0830 | L103: 0.33 | O103: 0.00
A104: 915.55 915.140 | B104: 915 - Avocados Report of Special Purpose Shipment | G104: FV-212 | H104: 2 | I104: 3.0000 | J104: =SUM(H104*I104) -> 6.00 | K104: 0.1000 | L104: =SUM(J104*K104) -> 0.60 | O104: =SUM(M104*N104) -> 0.00
A105: 923.54 923.322 | B105: 923 - Sweet Cherries Special Purpose Shipment Report | G105: None | H105: 6 | I105: 10.0000 | J105: =SUM(H105*I105) -> 60.00 | K105: 0.0830 | L105: =SUM(J105*K105) -> 4.98 | O105: =SUM(M105*N105) -> 0.00
A106: 7 CFR | B106: Application for Registered Handler
A107: 915.50(c) 915.120 | B107: 915 - Avocados | G107: FV-209 | H107: 2 | I107: 1.0000 | J107: =SUM(H107*I107) -> 2.00 | K107: 0.2500 | L107: =SUM(J107*K107) -> 0.50 | O107: =SUM(M107*N107) -> 0.00
A108: 7 CFR | B108: Application for Registered Processor
A109: 915.50(c) 915.141(b) | B109: 915 - Avocados | G109: FV-217 | H109: 1 | I109: 1.0000 | J109: 1.00 | K109: 0.0830 | L109: 0.08 | O109: 0.00
B110: SUBTOTAL | J110: =SUM(J101:J109) -> 79.00 | L110: =SUM(L101:L109) -> 8.48 | O110: =SUM(O101:O109) -> 0.00
A111: 7 CFR | B111: Recordkeeping
A112: 905.148 | B112: 905 - Citrus Grown in Florida | G112: None | J112: =SUM(H112*I112) -> 0.00 | L112: =SUM(J112*K112) -> 0.00 | M112: 75 | N112: 5.000 | O112: =SUM(M112*N112) -> 375.00
A113: 906.51(c) | B113: 906 - Texas Citrus | G113: None | J113: =SUM(H113*I113) -> 0.00 | L113: =SUM(J113*K113) -> 0.00 | M113: 22 | N113: 0.100 | O113: =SUM(M113*N113) -> 2.20
A114: 915.50 | B114: 915 - Avocados | G114: None | J114: =SUM(H114*I114) -> 0.00 | L114: =SUM(J114*K114) -> 0.00 | M114: 35 | N114: 0.350 | O114: =SUM(M114*N114) -> 12.25
A115: 920.60(c) | B115: 920 - Kiwifruit | G115: None | J115: =SUM(H115*I115) -> 0.00 | L115: =SUM(J115*K115) -> 0.00 | M115: 24 | N115: 0.550 | O115: =SUM(M115*N115) -> 13.20
A116: 922.60 | B116: 922 - Apricots | G116: None | J116: =SUM(H116*I116) -> 0.00 | L116: =SUM(J116*K116) -> 0.00 | M116: 22 | N116: 0.420 | O116: =SUM(M116*N116) -> 9.24
A117: 923.60 | B117: 923 - Sweet Cherries | G117: None | J117: =SUM(H117*I117) -> 0.00 | L117: =SUM(J117*K117) -> 0.00 | M117: 53 | N117: 0.420 | O117: =SUM(M117*N117) -> 22.26
A118: 925.60(a), (b), (c) | B118: 925 - California Desert Grapes | G118: None | J118: 0.00 | L118: 0.00 | O118: 0.00
A119: 927.70 | B119: 927 - Fresh Pears | G119: None | J119: 0.00 | L119: 0.00 | M119: 50 | N119: 0.500 | O119: 25.00
A120: 927.70 | B120: 927 - Processed Pears | G120: None | J120: =SUM(H120*I120) -> 0.00 | L120: =SUM(J120*K120) -> 0.00 | M120: 75 | N120: 0.350 | O120: =SUM(M120*N120) -> 26.25
A121: 929.63 | B121: 929 - Cranberries | G121: None | J121: 0.00 | L121: 0.00 | M121: 50 | N121: 0.020 | O121: 1.00
B122: SUBTOTAL | J122: =SUM(J111:J121) -> 0.00 | L122: =SUM(L111:L121) -> 0.00 | M122: =SUM(M112:M121) -> 406.00 | N122: =+SUM(N112:N121) -> 7.71 | O122: =SUM(O112:O121) -> 486.40
A123: 7 CFR | B123: Application for Producer Exemption Certificate
A124: 915.53 | B124: 915 - Avocados Producer Exemption | G124: FV-210 | H124: 5 | I124: 1.0000 | J124: =SUM(H124*I124) -> 5.00 | K124: 0.1670 | L124: =SUM(J124*K124) -> 0.84 | O124: =SUM(M124*N124) -> 0.00
A125: 915.110 | B125: 915 - Avocados Certificate of Exemption | G125: FV-210-1 | H125: 5 | I125: 1.0000 | J125: =SUM(H125*I125) -> 5.00 | K125: 0.0830 | L125: =SUM(J125*K125) -> 0.42 | O125: =SUM(M125*N125) -> 0.00
A126: 7 CFR | B126: Packout Report
A127: 927.70 927.125 | B127: 927 - Fresh Pears Handler's Packout Report | G127: None | H127: 50 | I127: 38.0000 | J127: =SUM(H127*I127) -> 1,900.00 | K127: 0.7500 | L127: 1,425.00 | O127: 0.00
A128: 927.70 927.125 | B128: 927 - Fresh Pears Organic Handler's Packout Report | G128: None | H128: 10 | I128: 7.0000 | J128: 70.00 | K128: 0.7500 | L128: =SUM(J128*K128) -> 52.50 | O128: =SUM(M128*N128) -> 0.00
A129: 7 CFR | B129: 905 - Citrus Grown in Florida
A130: 905.50 | B130: Florida Citrus Crop Prospects | G130: None | H130: 82 | I130: 1.0000 | J130: 82.00 | K130: 0.0830 | L130: 6.81 | O130: 0.00
A131: 905.153 | B131: Handler Loan and Transfer Form | G131: CAC 301 | H131: 40 | I131: 4.0000 | J131: =SUM(H131*I131) -> 160.00 | K131: 0.0830 | L131: =SUM(J131*K131) -> 13.28 | O131: =SUM(M131*N131) -> 0.00
A132: 905.153 | B132: Report of Red Grapefruit Shipments by Day Regulation Week | G132: CAC 302 | H132: 75 | I132: 77.0000 | J132: =SUM(H132*I132) -> 5,775.00 | K132: 0.0830 | L132: =SUM(J132*K132) -> 479.33 | O132: =SUM(M132*N132) -> 0.00
B133: SUBTOTAL | J133: =SUM(J123:J132) -> 7,997.00 | L133: =SUM(L123:L132) -> 1,978.16 | O133: =SUM(O124:O132) -> 0.00
A134: 905.153 | B134: New Handler Application | G134: CAC 303 | H134: 1 | I134: 0.5000 | J134: =SUM(H134*I134) -> 0.50 | K134: 0.0830 | L134: =SUM(J134*K134) -> 0.04 | O134: =SUM(M134*N134) -> 0.00
A135: 905.149 | B135: Grower Tree Run Certificate Application | G135: CAC 401 | H135: 45 | I135: 1.0000 | J135: =SUM(H135*I135) -> 45.00 | K135: 0.0830 | L135: 3.74 | O135: 0.00
A136: 905.149 | B136: Report of Shipments Under Grower Tree Run Certificate | G136: CAC 402 | H136: 45 | I136: 3.0000 | J136: 135.00 | K136: 0.0830 | L136: 11.21 | O136: 0.00
A137: 905.71 | B137: Handler Supplier Report (merged from 0581-0284) | G137: None | H137: 45 | I137: 1.0000 | J137: =SUM(H137*I137) -> 45.00 | K137: 0.3300 | L137: =SUM(J137*K137) -> 14.85
A138: 7 CFR | B138: 906 - Texas Citrus
A139: 906.51 | B139: Diversion Report | G139: None | H139: 14 | I139: 20.0000 | J139: =SUM(H139*I139) -> 280.00 | K139: 0.0830 | L139: =SUM(J139*K139) -> 23.24 | O139: =SUM(M139*N139) -> 0.00
A140: 906.51 | B140: Handler Application | G140: None | H140: 22 | I140: 0.0500 | J140: =SUM(H140*I140) -> 1.10 | K140: 0.0830 | L140: =SUM(J140*K140) -> 0.09 | O140: =SUM(M140*N140) -> 0.00
A141: 906.51(a) | B141: Confidential Citrus Crop Questionnaire | G141: None | H141: 183 | I141: 1.0000 | J141: =SUM(H141*I141) -> 183.00 | K141: 0.4170 | L141: =SUM(J141*K141) -> 76.31 | O141: =SUM(M141*N141) -> 0.00
A142: 906.51(b), 906.151(a), (b), (c) | B142: Seller/Buyer Certificate | G142: None | H142: 28 | I142: 60.0000 | J142: =SUM(H142*I142) -> 1,680.00 | K142: 0.0830 | L142: =SUM(J142*K142) -> 139.44 | O142: =SUM(M142*N142) -> 0.00
A143: 906.123(b) | B143: Application & Certification Citrus By-Products Purchase Agreement | G143: None | H143: 19 | I143: 1.0000 | J143: 19.00 | K143: 0.3300 | L143: 6.27 | O143: 0.00
A144: 906.123(b) | B144: Information Data Sheet on Citrus Processor | G144: None | H144: 19 | I144: 1.0000 | J144: 19.00 | K144: 0.0830 | L144: 1.58 | O144: 0.00
B145: SUBTOTAL | J145: =SUM(J134:J144) -> 2,407.60 | L145: =SUM(L134:L144) -> 276.76 | O145: =SUM(O139:O146) -> 0.00
A146: 7 CFR | B146: 915 - Avocados
A147: 915.60 915.150(a), (b) | B147: Avocado Handler's Weekly Report Form (reporting requirement suspended) | G147: FV-215 | H147: 0 | I147: 0.0000 | J147: =SUM(H147*I147) -> 0.00 | K147: 0.0000 | L147: =SUM(J147*K147) -> 0.00 | O147: =SUM(M147*N147) -> 0.00
A148: 7 CFR | B148: 920 - Kiwifruit
A149: 920.110 | B149: Application for Inspection (Waiver Form) | G149: FV-266-12 | H149: 24 | I149: 1.0000 | J149: =SUM(H149*I149) -> 24.00 | K149: 0.1000 | L149: =SUM(J149*K149) -> 2.40 | O149: =SUM(M149*N149) -> 0.00
A150: 920.160(a) | B150: Shipment Report | G150: FV-266-9 | H150: 24 | I150: 8.0000 | J150: 192.00 | K150: 0.5000 | L150: 96.00 | O150: 0.00
A151: 920.160(b) | B151: Kiwifruit Inventory Shipment System (add, deduct, and shipment forms) | G151: FV-266-13 | H151: 24 | I151: 12.0000 | J151: 288.00 | K151: 0.5000 | L151: 144.00 | O151: 0.00
A152: 920.160(c) | B152: Return Receipt of Kiwifruit to Growers | G152: FV-266-5 | H152: 5 | I152: 5.0000 | J152: 25.00 | K152: 0.0830 | L152: 2.08 | O152: 0.00
A153: 920.160(d) | B153: KISS Price/Shipment Report (Paper version and electronic version; electronic burden included in overall burden) | G153: FV-266-6 | H153: 15 | I153: 28.0000 | J153: 420.00 | K153: 1.0000 | L153: 420.00 | O153: 0.00
A154: 920.160 | B154: End-Of-Season F.O.B. Sales Report | G154: FV-266-7 | H154: 27 | I154: 1.0000 | J154: 27.00 | K154: 0.7500 | L154: 20.25 | O154: 0.00
A155: 920.160 | B155: Final Packout Report | G155: FV-266-8 | H155: 27 | I155: 1.0000 | J155: 27.00 | K155: 0.7500 | L155: 20.25 | O155: 0.00
A156: 920.303 | B156: Kiwifruit Restyle Verification Form | G156: FV-266-4 | H156: 24 | I156: 150.0000 | J156: =SUM(H156*I156) -> 3,600.00 | K156: 0.2500 | L156: =SUM(J156*K156) -> 900.00 | O156: =SUM(M156*N156) -> 0.00
B157: SUBTOTAL | J157: =SUM(J147:J156) -> 4,603.00 | L157: =SUM(L147:L156) -> 1,604.98 | O157: =SUM(O161:O164) -> 0.00
A158: 7 CFR | B158: 922 - Apricots
A159: 922.55 922.111 | B159: Application for Waiver of Inspection at Time of Shipment | G159: None | H159: 1 | I159: 1.0000 | J159: 1.00 | K159: 0.0830 | L159: 0.08 | O159: 0.00
A160: 922.55 922.111 | B160: Waiver of Inspection Permit | G160: None | H160: 1 | I160: 5.0000 | J160: 5.00 | K160: 0.0830 | L160: 0.42 | O160: 0.00
A161: 7 CFR | B161: 925 - California Desert Grapes | O161: =SUM(M161*N161) -> 0.00
A162: 925.50 | B162: Grape Acreage Report | G162: CDGAC-7 | H162: 50 | I162: 1.0000 | J162: =SUM(H162*I162) -> 50.00 | K162: 0.5000 | L162: =SUM(J162*K162) -> 25.00 | O162: 0.00
A163: 925.54 925.304(c) | B163: Organically Grown Grapes | G163: CDGAC-1 | H163: 6 | I163: 1.0000 | J163: =SUM(H163*I163) -> 6.00 | K163: 0.1600 | L163: =SUM(J163*K163) -> 0.96 | O163: 0.00
A164: 925.54 | B164: Experimental Containers | G164: CDGAC-5 | H164: 1 | I164: 1.0000 | J164: =SUM(H164*I164) -> 1.00 | K164: 0.1600 | L164: =SUM(J164*K164) -> 0.16 | O164: 0.00
A165: 925.160 | B165: End of Season Shipment Report | G165: CDGAC-3 | H165: 15 | I165: 1.0000 | J165: =SUM(H165*I165) -> 15.00 | K165: 0.5000 | L165: =SUM(J165*K165) -> 7.50 | O165: =SUM(M165*N165) -> 0.00
A166: 7 CFR | B166: 927 - Pears Grown in Oregon and Washington (Fresh Pears)
A167: 927.70 927.125 | B167: Handler Statement of Fresh Pear Shipments | G167: None | H167: 50 | I167: 25.0000 | J167: =SUM(H167*I167) -> 1,250.00 | K167: 0.7500 | L167: =SUM(J167*K167) -> 937.50 | O167: =SUM(M167*N167) -> 0.00
A168: 927.70 927.125 | B168: Pear Size and Grade Storage Report | G168: None | H168: 50 | I168: 5.0000 | J168: =SUM(H168*I168) -> 250.00 | K168: 1.0000 | L168: 250.00 | O168: 0.00
B169: Handler's Packout Report
B170: Organic Handler's Packout Report
B171: SUBTOTAL | J171: =SUM(J159:J168) -> 1,578.00 | L171: =SUM(L159:L168) -> 1,221.62 | O171: =SUM(O165:O178) -> 0.00
A172: 7 CFR | B172: 927 - Pears Grown in Oregon and Washington (Processed Pears)
A173: 927.70 927.125 | B173: Assessment Report | G173: None | H173: 75 | I173: 1.0000 | J173: =SUM(H173*I173) -> 75.00 | K173: 0.7500 | L173: =SUM(J173*K173) -> 56.25 | O173: =SUM(M173*N173) -> 0.00
A174: 7 CFR | B174: 929 - Cranberries
A175: 929.62 | B175: Grower Sales and Acreage Report | G175: CMC GSAR-1 | H175: 1,250 | I175: 1.0000 | J175: =SUM(H175*I175) -> 1,250.00 | K175: 0.3300 | L175: 412.50 | O175: 0.00
A176: 929.49 929.50 | B176: Leased Acreage Form | G176: CMC L1 | H176: 25 | I176: 1.0000 | J176: =SUM(H176*I176) -> 25.00 | K176: 0.3300 | L176: =SUM(J176*K176) -> 8.25 | O176: =SUM(M176*N176) -> 0.00
A177: 929.50 929.110 | B177: Cranberry Acreage & Sales History Transfer Form (Seller) | G177: CMC Trf-20XX-20XX | H177: 50 | I177: 1.0000 | J177: =SUM(H177*I177) -> 50.00 | K177: 0.2000 | L177: =SUM(J177*K177) -> 10.00 | O177: =SUM(M177*N177) -> 0.00
A178: 929.50 929.110 | B178: Cranberry Acreage & Sales History Transfer Form (Buyer) | G178: CMC Trf-20XX-20XX | H178: 50 | I178: 1.0000 | J178: 50.00 | K178: 0.2000 | L178: 10.00 | O178: 0.00
A179: 929.55 | B179: Interhandler Transfer Form | G179: 1HTR | H179: 50 | I179: 4.0000 | J179: =SUM(H179*I179) -> 200.00 | K179: 0.3300 | L179: =SUM(J179*K179) -> 66.00 | O179: =SUM(M179*N179) -> 0.00
A180: 929.62 | B180: Grower Acquisition Listing | G180: CMC GAL | H180: 50 | I180: 1.0000 | J180: =SUM(H180*I180) -> 50.00 | K180: 0.3300 | L180: =SUM(J180*K180) -> 16.50 | O180: =SUM(M180*N180) -> 0.00
A181: 929.62 929.105 | B181: Handler Inventory Report | G181: HIR | H181: 50 | I181: 4.0000 | J181: 200.00 | K181: 0.3300 | L181: 66.00 | O181: 0.00
B182: SUBTOTAL | J182: =SUM(J173:J181) -> 1,900.00 | L182: =SUM(L173:L181) -> 645.50 | O182: =SUM(O176:O181) -> 0.00
A183: 929.62 929.105 | B183: Processor Inventory Report | G183: PIR | H183: 12 | I183: 4.0000 | J183: =SUM(H183*I183) -> 48.00 | K183: 1.0000 | L183: =SUM(J183*K183) -> 48.00 | O183: =SUM(M183*N183) -> 0.00
A184: 929.49(d) | B184: Growers Notice of Intent to Produce and Qualifying for Annual Allotment Form | G184: CMC AL 1 | H184: 1,250 | I184: 1.0000 | J184: 1,250.00 | K184: 0.3300 | L184: 412.50 | O184: 0.00
A185: 929.151(c) | B185: Allotment Transfer and Disposition Agreement | G185: CMC T7 | H185: 1,250 | I185: 1.0000 | J185: 1,250.00 | K185: 0.3300 | L185: 412.50 | O185: 0.00
A186: 929.66 | B186: Letter of Acknowledgement | G186: None | H186: 60 | I186: 1.0000 | J186: 60.00 | K186: 0.1670 | L186: 10.02
B187: SUBTOTAL | J187: =SUM(J183:J186) -> 2,608.00 | L187: =SUM(L183:L186) -> 883.02 | O187: =SUM(O181:O186) -> 0.00
A191: INSTRUCTIONS: Use this form when a single information collection document involves multiple reporting and recordkeeping requirements. The totals of the figures in cols. should be entered in item 13 of OMB-83-1: cols. (D) &/or (I) = 13a (respondent is only counted once); cols. F & I = 13b; cols. H & K = 13c. (F)Total/(D)Total = (E)Average (H)Total/(F)Total = (G)Average (K)Total/(I)Total = (J)Average NOTE: The columns will calculate automatically. If Col. E's response is something other than annually, i.e., 1/6 years, list as "1/6" & decimal will display. | I191: TITLE OF INFORMATION COLLECTION DOCUMENT | N191: OMB NO.
I193: Marketing Order Administration Branch Generic OMB Fruit Crops | N193: 0581-
N196: DATE PREPARED
A200: IDENTIFICATION OF REPORTING OR RECORDKEEPING REQUIREMENT | H200: ANNUAL BURDEN
H202: REPORTS | M202: RECORDS
O204: TOTAL
G205: FORMS NO (S) | H205: NO. OF | I205: NO OF | J205: TOTAL ANNUAL | K205: HOURS | L205: TOTAL | M205: NO. OF | N205: ANNUAL | O205: RECORD-
A206: SECTION OF | B206: DESCRIPTION | G206: (If "none" | H206: RESPONDENTS | I206: RESPONSES | J206: RESPONSES | K206: PER | L206: HOURS | M206: RECORD- | N206: HOURS PER | O206: KEEPING HOURS
A207: REGS. | G207: so state) | I207: PER | J207: (Col. D x E) | K207: RESPONSE | L207: (Col. F x G) | M207: KEEPERS | N207: RECORD- | O207: (Col. I x J)
I208: RESPONDENT | N208: KEEPER
A209: (A) | B209: (B) | G209: (C) | H209: (D) | I209: (E) | J209: (F) | K209: (G) | L209: (H) | M209: (I) | N209: (J) | O209: (K)
J210: =SUM(H210*I210) -> 0.00 | L210: =SUM(J210*K210) -> 0.00 | O210: =SUM(M210*N210) -> 0.00
J211: 0.00 | L211: 0.00 | O211: 0.00
J212: 0.00 | L212: 0.00 | O212: 0.00
J213: 0.00 | L213: 0.00 | O213: 0.00
J214: 0.00 | L214: 0.00 | O214: 0.00
J215: 0.00 | L215: 0.00 | O215: 0.00
... 631 more rows
